Workbook

Sheet suggerimenti
A1: SUGGERIMENTI MODELLO
A2: Esiste un modo semplice per passare tra il foglio di riepilogo Trend di spesa e i dettagli delle spese mensili?
A3: Per passare rapidamente alle spese di un mese specifico, fare clic sul collegamento associato sopra il grafico, ad esempio Gen in B2. Quindi, per tornare nel foglio di lavoro Trend di spesa, fare clic sul collegamento Riepilogo in D1.
A4: Per tornare in questo foglio di lavoro dei suggerimenti, selezionare N2 nel foglio Riepilogo. Da tutti i fogli di lavoro dei mesi selezionare E1.
A5: Come si aggiunge un nuovo tipo di spesa al Riepilogo spese o alle nuove spese mensili?
A6: Il riepilogo delle spese sotto il grafico e i dettagli delle spese per ogni mese sono tabelle di Excel. Per aggiungere nuove righe a una tabella di Excel, eseguire una delle operazioni seguenti:
A7: =ROW(A1)&". Se la tabella non include una riga Totale, iniziare a digitare sotto la tabella perché si espanda automaticamente quando si preme INVIO o TAB." -> 1. Se la tabella non include una riga Totale, iniziare a digitare sotto la tabella perché si espanda automaticamente quando si preme INVIO o TAB.
A8: =ROW(A2)&". Posizionare il puntatore di cella nell'ultima cella sopra la riga Totale, ad esempio il totale per l'ultima spesa, e quindi premere TAB." -> 2. Posizionare il puntatore di cella nell'ultima cella sopra la riga Totale, ad esempio il totale per l'ultima spesa, e quindi premere TAB.
A9: =ROW(A3)&". Fare clic con il pulsante destro del mouse nella tabella e scegliere Inserisci dal menu di scelta rapida, quindi fare clic su Righe tabella sopra o Righe tabella sotto." -> 3. Fare clic con il pulsante destro del mouse nella tabella e scegliere Inserisci dal menu di scelta rapida, quindi fare clic su Righe tabella sopra o Righe tabella sotto.
A10: =ROW(A4)&". Nell'angolo in basso a destra della tabella posizionare il mouse sul quadratino di ridimensionamento della tabella e trascinarlo verso il basso per aumentare il numero di righe di tabella disponibili." -> 4. Nell'angolo in basso a destra della tabella posizionare il mouse sul quadratino di ridimensionamento della tabella e trascinarlo verso il basso per aumentare il numero di righe di tabella disponibili.
A11: Immettere la spesa nel foglio di lavoro riepilogo nella colonna Spese della tabella RiepilogoSpese.
A12: Aggiungere l'importo per ogni tipo di spesa nel foglio di lavoro del mese applicabile.
A13: Esempio: "Spesa 1" si verifica nei mesi da gennaio a giugno e dicembre.
A14: =ROW(A1)&". La riga Spesa 1 viene immessa nel foglio di lavoro di riepilogo sotto Spese nella tabella RiepilogoSpese (come titolo per il tipo di spesa)" -> 1. La riga Spesa 1 viene immessa nel foglio di lavoro di riepilogo sotto Spese nella tabella RiepilogoSpese (come titolo per il tipo di spesa)
A15: =ROW(A2)&". Per ogni mese in cui si verificano spese, immettere l'importo delle spese nel foglio di lavoro del mese corrispondente." -> 2. Per ogni mese in cui si verificano spese, immettere l'importo delle spese nel foglio di lavoro del mese corrispondente.
A16: =ROW(A3)&". Il tipo di spesa dal foglio di lavoro RiepilogoSpese crea un elenco di categorie per la colonna Categoria nel foglio di lavoro di ogni mese." -> 3. Il tipo di spesa dal foglio di lavoro RiepilogoSpese crea un elenco di categorie per la colonna Categoria nel foglio di lavoro di ogni mese.
A17: =ROW(A4)&". Usare l'elenco di categorie nella colonna Categoria per selezionare il tipo di spesa corrispondente per l'importo delle spese immesso" -> 4. Usare l'elenco di categorie nella colonna Categoria per selezionare il tipo di spesa corrispondente per l'importo delle spese immesso
A18: =ROW(A5)&". Per aggiungere nuove spese per qualsiasi mese, aggiungere una nuova riga alla tabella RiepilogoSpese nel foglio di lavoro di riepilogo, quindi immettere i dettagli delle spese corrispondenti nel foglio di lavoro del mese a cui si applicano." -> 5. Per aggiungere nuove spese per qualsiasi mese, aggiungere una nuova riga alla tabella RiepilogoSpese nel foglio di lavoro di riepilogo, quindi immettere i dettagli delle spese corrispondenti nel foglio di lavoro del mese a cui si applicano.

Sheet riepilogo
A1: TREND DI SPESA
B2: Gen | C2: Feb | D2: Mar | E2: Apr | F2: Mag | G2: Giu | H2: Lug | I2: Ago | J2: Set | K2: Ott | L2: Nov | M2: Dic | N2: Suggerimenti
A4: Spese | B4: Gen | C4: Feb | D4: Mar | E4: Apr | F4: Mag | G4: Giu | H4: Lug | I4: Ago | J4: Set | K4: Ott | L4: Nov | M4: Dic | N4: Totale | O4: Tendenza
A5: Spesa 1 | B5: =SUMIFS(SpeGen[Importo],SpeGen[Categoria],RiepilogoSpese[Spese]) -> 33.00 | C5: =SUMIFS(SpeFeb[Importo],SpeFeb[Categoria],RiepilogoSpese[Spese]) -> 375.00 | D5: =SUMIFS(SpeMar[Importo],SpeMar[Categoria],RiepilogoSpese[Spese]) -> 33.00 | E5: =SUMIFS(SpeApr[Importo],SpeApr[Categoria],RiepilogoSpese[Spese]) -> 45.00 | F5: =SUMIFS(SpeMag[Importo],SpeMag[Categoria],RiepilogoSpese[Spese]) -> 375.00 | G5: =SUMIFS(SpeGiu[Importo],SpeGiu[Categoria],RiepilogoSpese[Spese]) -> 201.00 | H5: =SUMIFS(SpeLug[Importo],SpeLug[Categoria],RiepilogoSpese[Spese]) -> 0.00 | I5: =SUMIFS(SpeAgo[Importo],SpeAgo[Categoria],RiepilogoSpese[Spese]) -> 0.00 | J5: =SUMIFS(SpeSet[Importo],SpeSet[Categoria],RiepilogoSpese[Spese]) -> 0.00 | K5: =SUMIFS(SpeOtt[Importo],SpeOtt[Categoria],RiepilogoSpese[Spese]) -> 0.00 | L5: =SUMIFS(SpeNov[Importo],SpeNov[Categoria],RiepilogoSpese[Spese]) -> 0.00 | M5: =SUMIFS(SpeDic[Importo],SpeDic[Categoria],RiepilogoSpese[Spese]) -> 201.00 | N5: =SUM(RiepilogoSpese[[#This Row],[Gen]:[Dic]]) -> 1,263.00
A6: Spesa 2 | B6: =SUMIFS(SpeGen[Importo],SpeGen[Categoria],RiepilogoSpese[Spese]) -> 238.00 | C6: =SUMIFS(SpeFeb[Importo],SpeFeb[Categoria],RiepilogoSpese[Spese]) -> 238.00 | D6: =SUMIFS(SpeMar[Importo],SpeMar[Categoria],RiepilogoSpese[Spese]) -> 238.00 | E6: =SUMIFS(SpeApr[Importo],SpeApr[Categoria],RiepilogoSpese[Spese]) -> 123.00 | F6: =SUMIFS(SpeMag[Importo],SpeMag[Categoria],RiepilogoSpese[Spese]) -> 111.00 | G6: =SUMIFS(SpeGiu[Importo],SpeGiu[Categoria],RiepilogoSpese[Spese]) -> 98.00 | H6: =SUMIFS(SpeLug[Importo],SpeLug[Categoria],RiepilogoSpese[Spese]) -> 0.00 | I6: =SUMIFS(SpeAgo[Importo],SpeAgo[Categoria],RiepilogoSpese[Spese]) -> 0.00 | J6: =SUMIFS(SpeSet[Importo],SpeSet[Categoria],RiepilogoSpese[Spese]) -> 0.00 | K6: =SUMIFS(SpeOtt[Importo],SpeOtt[Categoria],RiepilogoSpese[Spese]) -> 0.00 | L6: =SUMIFS(SpeNov[Importo],SpeNov[Categoria],RiepilogoSpese[Spese]) -> 0.00 | M6: =SUMIFS(SpeDic[Importo],SpeDic[Categoria],RiepilogoSpese[Spese]) -> 440.00 | N6: =SUM(RiepilogoSpese[[#This Row],[Gen]:[Dic]]) -> 1,486.00
A7: Spesa 3 | B7: =SUMIFS(SpeGen[Importo],SpeGen[Categoria],RiepilogoSpese[Spese]) -> 110.00 | C7: =SUMIFS(SpeFeb[Importo],SpeFeb[Categoria],RiepilogoSpese[Spese]) -> 110.00 | D7: =SUMIFS(SpeMar[Importo],SpeMar[Categoria],RiepilogoSpese[Spese]) -> 110.00 | E7: =SUMIFS(SpeApr[Importo],SpeApr[Categoria],RiepilogoSpese[Spese]) -> 125.00 | F7: =SUMIFS(SpeMag[Importo],SpeMag[Categoria],RiepilogoSpese[Spese]) -> 333.00 | G7: =SUMIFS(SpeGiu[Importo],SpeGiu[Categoria],RiepilogoSpese[Spese]) -> 122.00 | H7: =SUMIFS(SpeLug[Importo],SpeLug[Categoria],RiepilogoSpese[Spese]) -> 0.00 | I7: =SUMIFS(SpeAgo[Importo],SpeAgo[Categoria],RiepilogoSpese[Spese]) -> 0.00 | J7: =SUMIFS(SpeSet[Importo],SpeSet[Categoria],RiepilogoSpese[Spese]) -> 0.00 | K7: =SUMIFS(SpeOtt[Importo],SpeOtt[Categoria],RiepilogoSpese[Spese]) -> 0.00 | L7: =SUMIFS(SpeNov[Importo],SpeNov[Categoria],RiepilogoSpese[Spese]) -> 0.00 | M7: =SUMIFS(SpeDic[Importo],SpeDic[Categoria],RiepilogoSpese[Spese]) -> 122.00 | N7: =SUM(RiepilogoSpese[[#This Row],[Gen]:[Dic]]) -> 1,032.00
A8: Spesa 4 | B8: =SUMIFS(SpeGen[Importo],SpeGen[Categoria],RiepilogoSpese[Spese]) -> 426.00 | C8: =SUMIFS(SpeFeb[Importo],SpeFeb[Categoria],RiepilogoSpese[Spese]) -> 84.00 | D8: =SUMIFS(SpeMar[Importo],SpeMar[Categoria],RiepilogoSpese[Spese]) -> 84.00 | E8: =SUMIFS(SpeApr[Importo],SpeApr[Categoria],RiepilogoSpese[Spese]) -> 426.00 | F8: =SUMIFS(SpeMag[Importo],SpeMag[Categoria],RiepilogoSpese[Spese]) -> 125.00 | G8: =SUMIFS(SpeGiu[Importo],SpeGiu[Categoria],RiepilogoSpese[Spese]) -> 187.00 | H8: =SUMIFS(SpeLug[Importo],SpeLug[Categoria],RiepilogoSpese[Spese]) -> 0.00 | I8: =SUMIFS(SpeAgo[Importo],SpeAgo[Categoria],RiepilogoSpese[Spese]) -> 0.00 | J8: =SUMIFS(SpeSet[Importo],SpeSet[Categoria],RiepilogoSpese[Spese]) -> 0.00 | K8: =SUMIFS(SpeOtt[Importo],SpeOtt[Categoria],RiepilogoSpese[Spese]) -> 0.00 | L8: =SUMIFS(SpeNov[Importo],SpeNov[Categoria],RiepilogoSpese[Spese]) -> 0.00 | M8: =SUMIFS(SpeDic[Importo],SpeDic[Categoria],RiepilogoSpese[Spese]) -> 187.00 | N8: =SUM(RiepilogoSpese[[#This Row],[Gen]:[Dic]]) -> 1,519.00
A9: Spesa 5 | B9: =SUMIFS(SpeGen[Importo],SpeGen[Categoria],RiepilogoSpese[Spese]) -> 54.00 | C9: =SUMIFS(SpeFeb[Importo],SpeFeb[Categoria],RiepilogoSpese[Spese]) -> 54.00 | D9: =SUMIFS(SpeMar[Importo],SpeMar[Categoria],RiepilogoSpese[Spese]) -> 109.00 | E9: =SUMIFS(SpeApr[Importo],SpeApr[Categoria],RiepilogoSpese[Spese]) -> 98.00 | F9: =SUMIFS(SpeMag[Importo],SpeMag[Categoria],RiepilogoSpese[Spese]) -> 33.00 | G9: =SUMIFS(SpeGiu[Importo],SpeGiu[Categoria],RiepilogoSpese[Spese]) -> 441.00 | H9: =SUMIFS(SpeLug[Importo],SpeLug[Categoria],RiepilogoSpese[Spese]) -> 0.00 | I9: =SUMIFS(SpeAgo[Importo],SpeAgo[Categoria],RiepilogoSpese[Spese]) -> 0.00 | J9: =SUMIFS(SpeSet[Importo],SpeSet[Categoria],RiepilogoSpese[Spese]) -> 0.00 | K9: =SUMIFS(SpeOtt[Importo],SpeOtt[Categoria],RiepilogoSpese[Spese]) -> 0.00 | L9: =SUMIFS(SpeNov[Importo],SpeNov[Categoria],RiepilogoSpese[Spese]) -> 0.00 | M9: =SUMIFS(SpeDic[Importo],SpeDic[Categoria],RiepilogoSpese[Spese]) -> 99.00 | N9: =SUM(RiepilogoSpese[[#This Row],[Gen]:[Dic]]) -> 888.00
A10: Totale | B10: =SUBTOTAL(109,RiepilogoSpese[Gen]) -> 861.00 | C10: =SUBTOTAL(109,RiepilogoSpese[Feb]) -> 861.00 | D10: =SUBTOTAL(109,RiepilogoSpese[Mar]) -> 574.00 | E10: =SUBTOTAL(109,RiepilogoSpese[Apr]) -> 817.00 | F10: =SUBTOTAL(109,RiepilogoSpese[Mag]) -> 977.00 | G10: =SUBTOTAL(109,RiepilogoSpese[Giu]) -> 1,049.00 | H10: =SUBTOTAL(109,RiepilogoSpese[Lug]) -> 0.00 | I10: =SUBTOTAL(109,RiepilogoSpese[Ago]) -> 0.00 | J10: =SUBTOTAL(109,RiepilogoSpese[Set]) -> 0.00 | K10: =SUBTOTAL(109,RiepilogoSpese[Ott]) -> 0.00 | L10: =SUBTOTAL(109,RiepilogoSpese[Nov]) -> 0.00 | M10: =SUBTOTAL(109,RiepilogoSpese[Dic]) -> 1,049.00 | N10: =SUBTOTAL(109,RiepilogoSpese[Totale]) -> 6,188.00

Sheet gen
A1: SPESE GENNAIO | D1: Riepilogo | E1: Suggerimenti
A2: Data | B2: N. PO | C2: Importo | D2: Categoria | E2: Descrizione
A3: =DATE(YEAR(TODAY()),1,4) -> 2016-01-04 | B3: A-12345 | C3: 33.00 | D3: Spesa 1 | E3: Forniture
A4: =DATE(YEAR(TODAY()),1,5) -> 2016-01-05 | B4: A-12346 | C4: 238.00 | D4: Spesa 2
C5: 342.00 | D5: Spesa 4
C6: 110.00 | D6: Spesa 3
C7: 84.00 | D7: Spesa 4
C8: 54.00 | D8: Spesa 5
A9: Totale | C9: =SUBTOTAL(109,SpeGen[Importo]) -> 861.00

Sheet feb
A1: SPESE FEBBRAIO | D1: Riepilogo | E1: Suggerimenti
A2: Data | B2: N. PO | C2: Importo | D2: Categoria | E2: Descrizione
A3: =DATE(YEAR(TODAY()),2,3) -> 2016-02-03 | B3: A-12345 | C3: 33.00 | D3: Spesa 1 | E3: Forniture
A4: =DATE(YEAR(TODAY()),2,4) -> 2016-02-04 | B4: A-12346 | C4: 238.00 | D4: Spesa 2
C5: 342.00 | D5: Spesa 1
C6: 110.00 | D6: Spesa 3
C7: 84.00 | D7: Spesa 4
C8: 54.00 | D8: Spesa 5
A9: Totale | C9: =SUBTOTAL(109,SpeFeb[Importo]) -> 861.00

Sheet mar
A1: SPESE MARZO | D1: Riepilogo | E1: Suggerimenti
A2: Data | B2: N. PO | C2: Importo | D2: Categoria | E2: Descrizione
A3: =DATE(YEAR(TODAY()),3,5) -> 2016-03-05 | B3: A-12345 | C3: 33.00 | D3: Spesa 1 | E3: Forniture
A4: =DATE(YEAR(TODAY()),3,6) -> 2016-03-06 | B4: A-12346 | C4: 238.00 | D4: Spesa 2
C5: 55.00 | D5: Spesa 5
C6: 110.00 | D6: Spesa 3
C7: 84.00 | D7: Spesa 4
C8: 54.00 | D8: Spesa 5
A9: Totale | C9: =SUBTOTAL(109,SpeMar[Importo]) -> 574.00

Sheet apr
A1: SPESE APRILE | D1: Riepilogo | E1: Suggerimenti
A2: Data | B2: N. PO | C2: Importo | D2: Categoria | E2: Descrizione
A3: =DATE(YEAR(TODAY()),4,4) -> 2016-04-04 | B3: A-12345 | C3: 45.00 | D3: Spesa 1 | E3: Forniture
A4: =DATE(YEAR(TODAY()),4,8) -> 2016-04-08 | B4: A-12346 | C4: 123.00 | D4: Spesa 2
C5: 342.00 | D5: Spesa 4
C6: 125.00 | D6: Spesa 3
C7: 84.00 | D7: Spesa 4
C8: 98.00 | D8: Spesa 5
A9: Totale | C9: =SUBTOTAL(109,SpeApr[Importo]) -> 817.00

Sheet mag
A1: SPESE MAGGIO | D1: Riepilogo | E1: Suggerimenti
A2: Data | B2: N. PO | C2: Importo | D2: Categoria | E2: Descrizione
A3: =DATE(YEAR(TODAY()),5,3) -> 2016-05-03 | B3: A-12345 | C3: 33.00 | D3: Spesa 1 | E3: Forniture
A4: =DATE(YEAR(TODAY()),5,8) -> 2016-05-08 | B4: A-12346 | C4: 111.00 | D4: Spesa 2
C5: 342.00 | D5: Spesa 1
C6: 333.00 | D6: Spesa 3
C7: 125.00 | D7: Spesa 4
C8: 33.00 | D8: Spesa 5
A9: Totale | C9: =SUBTOTAL(109,SpeMag[Importo]) -> 977.00

Sheet giu
A1: SPESE GIUGNO | D1: Riepilogo | E1: Suggerimenti
A2: Data | B2: N. PO | C2: Importo | D2: Categoria | E2: Descrizione
A3: =DATE(YEAR(TODAY()),6,7) -> 2016-06-07 | B3: A-12345 | C3: 201.00 | D3: Spesa 1 | E3: Forniture
A4: =DATE(YEAR(TODAY()),6,8) -> 2016-06-08 | B4: A-12346 | C4: 98.00 | D4: Spesa 2
C5: 342.00 | D5: Spesa 5
C6: 122.00 | D6: Spesa 3
C7: 187.00 | D7: Spesa 4
C8: 99.00 | D8: Spesa 5
A9: Totale | C9: =SUBTOTAL(109,SpeGiu[Importo]) -> 1,049.00

Sheet lug
A1: SPESE LUGLIO | D1: Riepilogo | E1: Suggerimenti
A2: Data | B2: N. PO | C2: Importo | D2: Categoria | E2: Descrizione
A3: =DATE(YEAR(TODAY()),7,9) -> 2016-07-09 | B3: A-12345 | D3: Spesa 1 | E3: Forniture
A4: =DATE(YEAR(TODAY()),7,14) -> 2016-07-14 | B4: A-12346 | D4: Spesa 2
D5: Spesa 2
D6: Spesa 3
D7: Spesa 4
D8: Spesa 5
A9: Totale | C9: =SUBTOTAL(109,SpeLug[Importo]) -> 0.00

Sheet ago
A1: SPESE AGOSTO | D1: Riepilogo | E1: Suggerimenti
A2: Data | B2: N. PO | C2: Importo | D2: Categoria | E2: Descrizione
A3: =DATE(YEAR(TODAY()),8,8) -> 2016-08-08 | B3: A-12345 | D3: Spesa 1 | E3: Forniture
A4: =DATE(YEAR(TODAY()),8,9) -> 2016-08-09 | B4: A-12346 | D4: Spesa 2
D5: Spesa 2
D6: Spesa 3
D7: Spesa 4
D8: Spesa 5
A9: Totale | C9: =SUBTOTAL(109,SpeAgo[Importo]) -> 0.00

Sheet set
A1: SPESE SETTEMBRE | D1: Riepilogo | E1: Suggerimenti
A2: Data | B2: N. PO | C2: Importo | D2: Categoria | E2: Descrizione
A3: =DATE(YEAR(TODAY()),9,9) -> 2016-09-09 | B3: A-12345 | D3: Spesa 1 | E3: Forniture
A4: =DATE(YEAR(TODAY()),9,15) -> 2016-09-15 | B4: A-12346 | D4: Spesa 2
D5: Spesa 2
D6: Spesa 3
D7: Spesa 4
D8: Spesa 5
A9: Totale | C9: =SUBTOTAL(109,SpeSet[Importo]) -> 0.00

Sheet ott
A1: SPESE OTTOBRE | D1: Riepilogo | E1: Suggerimenti
A2: Data | B2: N. PO | C2: Importo | D2: Categoria | E2: Descrizione
A3: =DATE(YEAR(TODAY()),10,10) -> 2016-10-10 | B3: A-12345 | D3: Spesa 1 | E3: Forniture
A4: =DATE(YEAR(TODAY()),10,21) -> 2016-10-21 | B4: A-12346 | D4: Spesa 2
D5: Spesa 2
D6: Spesa 3
D7: Spesa 4
D8: Spesa 5
A9: Totale | C9: =SUBTOTAL(109,SpeOtt[Importo]) -> 0.00

Sheet nov
A1: SPESE NOVEMBRE | D1: Riepilogo | E1: Suggerimenti
A2: Data | B2: N. PO | C2: Importo | D2: Categoria | E2: Descrizione
A3: =DATE(YEAR(TODAY()),11,14) -> 2016-11-14 | B3: A-12345 | D3: Spesa 1 | E3: Forniture
A4: =DATE(YEAR(TODAY()),11,21) -> 2016-11-21 | B4: A-12346 | D4: Spesa 2
D5: Spesa 2
D6: Spesa 3
D7: Spesa 4
D8: Spesa 5
A9: Totale | C9: =SUBTOTAL(109,SpeNov[Importo]) -> 0.00

Sheet dic
A1: SPESE DICEMBRE | D1: Riepilogo | E1: Suggerimenti
A2: Data | B2: N. PO | C2: Importo | D2: Categoria | E2: Descrizione
A3: =DATE(YEAR(TODAY()),12,2) -> 2016-12-02 | B3: A-12345 | C3: 201.00 | D3: Spesa 1 | E3: Forniture
A4: =DATE(YEAR(TODAY()),12,24) -> 2016-12-24 | B4: A-12346 | C4: 98.00 | D4: Spesa 2
C5: 342.00 | D5: Spesa 2
C6: 122.00 | D6: Spesa 3
C7: 187.00 | D7: Spesa 4
C8: 99.00 | D8: Spesa 5
A9: Totale | C9: =SUBTOTAL(109,SpeDic[Importo]) -> 1,049.00
